fUSD/lending_fUSD_20240516
["ID","MTS","AMOUNT","RATE_DAILY","PERIOD"]
[327198543,1715893840559,-507.04965098,0.00010958,2]
[327198546,1715893840569,-500.0,0.00010958,2]
[327198548,1715893840578,-500.0,0.00010958,2]
[327198551,1715893840588,-317.78345942,0.00010958,2]
[327198553,1715893840597,-155.0,0.00010958,2]
[327198555,1715893840606,-213.55595717,0.00010958,2]
[327198557,1715893840616,-500.0,0.00010958,2]
[327198559,1715893840625,-236.59941731,0.00010958,2]
[327198561,1715893840634,-500.0,0.00010958,2]
[327198562,1715893840643,-500.0,0.00010958,2]
[327198564,1715893840653,-500.0,0.00010958,2]
[327198566,1715893840662,-500.0,0.00010958,2]
[327198568,1715893840671,-500.0,0.00010958,2]
[327198570,1715893840681,-500.0,0.00010958,2]
[327198572,1715893840690,-500.0,0.00010958,2]
[327198574,1715893840699,-500.0,0.00010958,2]
[327198576,1715893840709,-500.0,0.00010958,2]
[327198578,1715893840718,-500.0,0.00010958,2]
[327198580,1715893840729,-500.0,0.00010958,2]
[327198582,1715893840739,-500.0,0.00010958,2]
[327198584,1715893840748,-500.0,0.00010958,2]
[327198586,1715893840757,-500.0,0.00010958,2]
[327198588,1715893840766,-500.0,0.00010958,2]
[327198590,1715893840775,-500.0,0.00010958,2]
[327198592,1715893840784,-540.90555114,0.00010958,2]
[327198594,1715893840794,-500.0,0.00010958,2]
[327198597,1715893840804,-500.0,0.00010958,2]
[327198599,1715893840813,-528.76173809,0.00010958,2]
[327198600,1715893840824,-500.0,0.00010958,2]
[327198602,1715893840833,-500.0,0.00010958,2]
[327198604,1715893840842,-500.0,0.00010958,2]
[327198607,1715893840853,-500.0,0.00010958,2]
[327198609,1715893840867,-500.0,0.00010958,2]
[327198611,1715893840878,-500.0,0.00010958,2]
[327198613,1715893840888,-500.0,0.00010958,2]
[327198615,1715893840900,-500.0,0.00010958,2]
[327198616,1715893840909,-500.0,0.00010958,2]
[327198617,1715893840918,-500.0,0.00010958,2]
[327198618,1715893840928,-557.23881731,0.00010958,2]
[327198619,1715893840938,-500.0,0.00010958,2]
[327198620,1715893840948,-500.0,0.00010958,2]
[327198621,1715893840957,-500.0,0.00010958,2]
[327198622,1715893840969,-500.0,0.00010958,2]
[327198623,1715893840979,-500.0,0.00010958,2]
[327198624,1715893840989,-500.0,0.00010958,2]
[327198625,1715893840998,-500.0,0.00010958,2]
[327198626,1715893841008,-500.0,0.00010958,2]
[327198627,1715893841019,-500.0,0.00010958,2]
[327198628,1715893841031,-500.0,0.00010958,2]
[327198629,1715893841040,-500.0,0.00010958,2]
[327198630,1715893841051,-500.0,0.00010958,2]
[327198631,1715893841062,-500.0,0.00010958,2]
[327198632,1715893841073,-500.0,0.00010958,2]
[327198633,1715893841082,-500.0,0.00010958,2]
[327198634,1715893841091,-500.0,0.00010958,2]
[327198635,1715893841100,-500.0,0.00010958,2]
[327198636,1715893841110,-636.17004861,0.00010958,2]
[327198637,1715893841119,-500.0,0.00010958,2]
[327198638,1715893841130,-500.0,0.00010958,2]
[327198639,1715893841140,-500.0,0.00010958,2]
[327198640,1715893841151,-336.1073,0.00010958,2]
[327198641,1715893841162,-500.0,0.00010958,2]
[327198642,1715893841172,-500.0,0.00010958,2]
[327198643,1715893841183,-411.45,0.00010958,2]
[327198644,1715893841195,-500.0,0.00010958,2]
[327198645,1715893841206,-500.0,0.00010958,2]
[327198646,1715893841216,-500.0,0.00010958,2]
[327198647,1715893841225,-170.52,0.00010958,2]
[327198648,1715893841234,-500.0,0.00010958,2]
[327198649,1715893841243,-500.0,0.00010958,2]
[327198650,1715893841251,-500.0,0.00010958,2]
[327198651,1715893841260,-500.0,0.00010958,2]
[327198652,1715893841270,-500.0,0.00010958,2]
[327198653,1715893841280,-161.27323673,0.00010958,2]
[327198654,1715893841291,-500.0,0.00010958,2]
[327198655,1715893841301,-500.0,0.00010958,2]
[327198656,1715893841311,-500.0,0.00010958,2]
[327198657,1715893841322,-500.0,0.00010958,2]
[327198658,1715893841331,-500.0,0.00010958,2]
[327198659,1715893841342,-500.0,0.00010958,2]
[327198660,1715893841352,-500.0,0.00010958,2]
[327198661,1715893841361,-500.0,0.00010958,2]
[327198662,1715893841371,-474.3,0.00010959,2]
[327198663,1715893841380,-331.17,0.00010959,2]
[327198664,1715893841390,-436.02,0.0001096,2]
[327198665,1715893841400,-436.02,0.0001096,2]
[327198666,1715893841409,-436.02,0.0001096,2]
[327198667,1715893841418,-436.02,0.0001096,2]
[327198668,1715893841427,-436.02,0.0001096,2]
[327198669,1715893841437,-436.02,0.0001096,2]
[327198670,1715893841446,-436.02,0.0001096,2]
[327198671,1715893841455,-436.02,0.0001096,2]
[327198672,1715893841464,-436.02,0.0001096,2]
[327198673,1715893841474,-436.02,0.0001096,2]
[327198674,1715893841483,-11129.63222569,0.00010961,2]
[327198675,1715893841492,-400.0,0.00011,2]
[327198676,1715893841502,-183.05942095,0.00011,2]
[327198677,1715893841511,-467.871,0.00011078,2]
[327198678,1715893841520,-250.0,0.00011078,2]
[327198679,1715893841529,-150.0,0.00011079,2]
[327198680,1715893841539,-1000.0,0.00011091,2]
[327198681,1715893841548,-537.0,0.00011115,2]
[327198682,1715893841557,-200.0,0.00011126,2]
[327198683,1715893841566,-899.22445936,0.00011133,2]
[327198684,1715893841577,-11129.63222569,0.00011176,2]
[327198685,1715893841586,-58731.62977602,0.0001118,2]
[327198686,1715893841598,-363.98568217,0.0001118,2]
[327198687,1715893841609,-320.96907587,0.0001118,2]
[327198706,1715893842975,-192.5446866,9.498e-05,2]
[327198707,1715893842986,-404.54978707,0.00010958,2]
[327198708,1715893842995,-2669.00552633,0.0001118,2]
[327199024,1715893847672,-192.5446866,9.498e-05,2]
[327199026,1715893847682,-326.32919463,0.00010956,2]
[327199028,1715893847691,-163008.74446777,0.00011179,2]
[327199036,1715893847758,-415.7195867,0.00011179,2]
[327199038,1715893847769,-49199.99580967,0.00011179,2]
[327199047,1715893847847,-585.22668101,0.00011179,2]
[327199050,1715893847862,-2055.95637963,0.00011179,2]
[327200561,1715894323001,150.0,8.219e-05,2]
[327200562,1715894323044,47.63,8.219e-05,2]
[327200579,1715894799292,150.0,8.219e-05,2]
[327200580,1715894799317,47.63,8.219e-05,2]
[327200599,1715895032087,-819.045632,9.939e-05,2]
[327200601,1715895032097,-187.36,9.99e-05,2]
[327200602,1715895032107,-150.0,9.991e-05,2]
[327200603,1715895032116,-1261.735268,9.992e-05,2]
[327200620,1715895032315,-648.450036,9.992e-05,2]
[327200625,1715895033714,-1843.674696,9.992e-05,2]
[327200626,1715895033723,-2956.325304,9.992e-05,2]
[327200627,1715895033735,-2676.81080319,9.992e-05,2]
[327200672,1715895038220,-7379.67389281,9.992e-05,2]
[327200673,1715895038230,-319.08,0.00010001,2]
[327200674,1715895038239,-151.37,0.00010003,2]
[327200675,1715895038253,-250.0,0.00010004,2]
[327200676,1715895038263,-200.0,0.00010029,2]
[327200677,1715895038272,-173.05,0.00010041,2]
[327200678,1715895038282,-178.13,0.00010086,2]
[327200679,1715895038292,-299.41,0.0001009,2]
[327200680,1715895038302,-1000.0,0.00010222,2]
[327200681,1715895038311,-4339.5,0.0001063,15]
[327200682,1715895038320,-150.0,0.00010911,2]
[327200683,1715895038332,-150.0,0.00010913,2]
[327200684,1715895038342,-150.0,0.0001092,2]
[327200685,1715895038351,-150.0,0.00010941,2]
[327200686,1715895038360,-1055.23545333,0.00010955,2]
[327200687,1715895038369,-1081.24468636,0.00010955,2]
[327200688,1715895038378,-4412.24,0.00010959,2]
[327200689,1715895038387,-150.0,0.00010965,2]
[327200690,1715895038396,-150.0,0.00010969,2]
[327200691,1715895038405,-150.0,0.00010983,2]
[327200692,1715895038414,-210.0,0.00010991,2]
[327200693,1715895038423,-150.0,0.00010995,2]
[327200694,1715895038432,-2523.0,0.00011,2]
[327200695,1715895038442,-200.0,0.00011,2]
[327200696,1715895038451,-150.0,0.00011002,2]
[327200697,1715895038460,-150.0,0.00011015,2]
[327200698,1715895038469,-150.0,0.00011017,2]
[327200699,1715895038478,-150.0,0.00011061,2]
[327200700,1715895038487,-177.09693247,0.00011068,2]
[327200702,1715895038496,-3000.0,0.0001107,2]
[327200704,1715895038505,-2500.0,0.00011079,2]
[327200706,1715895038514,-7500.0,0.00011079,2]
[327200708,1715895038523,-978.18796677,0.00011079,2]
[327200710,1715895038532,-978.18796677,0.00011079,2]
[327200712,1715895038541,-449.61222968,0.0001108,2]
[327200714,1715895038550,-1000.0,0.00011091,2]
[327200715,1715895038560,-150.0,0.00011095,2]
[327200716,1715895038569,-1680.991,0.00011098,2]
[327200717,1715895038578,-1395.0,0.00011098,2]
[327200718,1715895038587,-900.0,0.00011098,2]
[327200719,1715895038596,-200.0,0.00011126,2]
[327200720,1715895038605,-150.0,0.00011145,2]
[327200721,1715895038613,-150.0,0.00011158,2]
[327200722,1715895038623,-162.50319315,0.00011178,2]
[327200723,1715895038632,-500.0,0.00011178,2]
[327200724,1715895038642,-500.0,0.00011178,2]
[327200725,1715895038650,-500.0,0.00011178,2]
[327200726,1715895038660,-462.38193297,0.00011178,2]
[327200727,1715895038669,-247.77,0.00011178,2]
[327200728,1715895038678,-500.0,0.00011178,2]
[327200729,1715895038687,-500.0,0.00011178,2]
[327200730,1715895038696,-526.11808015,0.00011178,2]
[327200731,1715895038705,-806.04,0.00011178,2]
[327200732,1715895038715,-500.0,0.00011178,2]
[327200733,1715895038724,-128650.73150043,0.00011179,2]
[327200734,1715895038737,-210439.80085614,0.00011179,2]
[327200735,1715895038746,-196.3970393,0.00011179,2]
[327200736,1715895038755,-1752.05677341,0.00011179,2]
[327200737,1715895038764,-62974.59489655,0.0001118,2]
[327200738,1715895038774,-449.61222968,0.00011248,2]
[327200739,1715895038783,-11129.63222569,0.00011392,2]
[327200740,1715895038792,-150.0,0.000114,2]
[327200741,1715895038802,-449.61222968,0.00011415,2]
[327200742,1715895038811,-200.0,0.00011423,2]
[327200743,1715895038820,-1000.0,0.00011423,2]
[327200744,1715895038829,-500.0,0.00011423,2]
[327200745,1715895038838,-1000.0,0.000115,2]
[327200746,1715895038847,-400.0,0.000115,4]
[327200747,1715895038856,-449.61222968,0.00011583,2]
[327200748,1715895038865,-900.0,0.000116,4]
[327200749,1715895038874,-500.0,0.00011607,2]
[327200750,1715895038883,-500.0,0.00011607,2]
[327200751,1715895038893,-500.0,0.00011607,2]
[327200752,1715895038903,-500.0,0.00011607,2]
[327200753,1715895038912,-806.04,0.00011607,2]
[327200754,1715895038922,-11129.63222569,0.00011607,2]
[327200755,1715895038931,-1400.0,0.000117,4]
[327200756,1715895038940,-449.61222968,0.0001175,2]
[327200757,1715895038949,-212.19434734,0.0001175,2]
[327200758,1715895038958,-194.26468822,0.0001175,2]
[327200759,1715895038968,-177.86460136,0.0001175,2]
[327200760,1715895038976,-2177.4616056,0.0001175,2]
[327200761,1715895038985,-200.0,0.00011754,2]
[327200762,1715895038994,-1000.0,0.00011754,2]
[327200763,1715895039003,-500.0,0.00011754,2]
[327200764,1715895039012,-155.24241743,0.00011797,2]
[327200765,1715895039022,-365.5169,0.00011798,2]
[327200766,1715895039031,-2000.0,0.000118,2]
[327200767,1715895039040,-1800.0,0.000118,4]
[327200768,1715895039050,-11129.63222569,0.00011823,2]
[327200769,1715895039059,-266.16247359,0.00011847,2]
[327200770,1715895039068,-278.45769739,0.00011848,2]
[327200771,1715895039078,-379.73800947,0.00011848,2]
[327200772,1715895039087,-2040.41244433,0.00011849,2]
[327200773,1715895039096,-1151.96077803,0.00011849,3]
[327200774,1715895039330,-500.0,0.00011849,2]
[327200775,1715895039342,-500.0,0.00011849,2]
[327200776,1715895039353,-500.0,0.00011849,2]
[327200777,1715895039363,-564.26,0.00011849,2]
[327200778,1715895039373,-500.0,0.00011849,2]
[327200779,1715895039383,-500.0,0.00011849,2]
[327200780,1715895039392,-305.2559286,0.00011849,2]
[327200781,1715895039402,-500.0,0.00011849,2]
[327200782,1715895039413,-500.0,0.00011849,2]
[327200783,1715895039423,-500.0,0.00011849,2]
[327200784,1715895039433,-500.0,0.00011849,2]
[327200785,1715895039443,-500.0,0.00011849,2]
[327200786,1715895039453,-500.0,0.00011849,2]
[327200787,1715895039463,-500.0,0.00011849,2]
[327200788,1715895039473,-500.0,0.00011849,2]
[327200789,1715895039483,-500.0,0.00011849,2]
[327200790,1715895039493,-500.0,0.00011849,2]
[327200791,1715895039504,-500.0,0.00011849,2]
[327200792,1715895039515,-500.0,0.00011849,2]
[327200793,1715895039525,-194.87184154,0.00011849,2]
[327200794,1715895039534,-806.04,0.00011849,2]
[327200795,1715895039544,-806.04,0.00011849,2]
[327200796,1715895039554,-806.04,0.00011849,2]
[327200797,1715895039564,-806.04,0.00011849,2]
[327200798,1715895039574,-806.04,0.00011849,2]
[327200799,1715895039584,-806.04,0.00011849,2]
[327200800,1715895039594,-806.04,0.00011849,2]
[327200801,1715895039604,-806.04,0.00011849,2]
[327200802,1715895039614,-806.04,0.00011849,2]
[327200803,1715895039624,-150.0,0.00011849,2]
[327200804,1715895039634,-138353.18207817,0.0001185,2]
[327200805,1715895039709,-319.077,0.0001185,2]
[327200806,1715895040391,-476.344,0.00011098,2]
[327200807,1715895040401,-288.261664,0.0001175,2]
[327200808,1715895040627,-1168.03784894,0.00011179,2]
[327200809,1715895040637,-140.10215106,0.0001175,2]
[327200810,1715895040649,-546.37638648,0.0001175,2]
[327200811,1715895040659,-905.47791122,0.0001185,2]
[327200814,1715895042711,150.0,8.219e-05,2]
[327200815,1715895042732,169.66721492,8.219e-05,2]
[327200816,1715895042758,1163.68536102,8.219e-05,2]
[327200830,1715895043346,-216.61,0.00010034,2]
[327200831,1715895043356,-500.0,0.00011178,2]
[327200832,1715895043366,-500.0,0.00011607,2]
[327200833,1715895043377,-500.0,0.00011849,2]
[327200834,1715895043388,-500.0,0.00011849,2]
[327200835,1715895043398,-500.0,0.00011849,2]
[327200836,1715895043409,-324408.80241571,0.0001185,2]
[327200837,1715895043423,-17003.17041859,0.0001185,2]
[327200857,1715895044137,194.10256223,8.219e-05,2]
[327200858,1715895046186,-201.28727559,0.0001175,2]
[327200859,1715895046195,-264.8582274,0.00011849,2]
[327200860,1715895046207,-235.1417726,0.00011849,2]
[327200861,1715895046216,-500.0,0.00011849,2]
[327200862,1715895046225,-161.28086005,0.00011849,2]
[327200863,1715895046236,-335.57894306,0.00011849,2]
[327200864,1715895046247,-23637.77015844,0.0001185,2]
[327200865,1715895046261,-12913.22348356,0.0001185,2]
[327200866,1715895046299,-14689.9999999,0.0001185,2]
[327200867,1715895046567,-379.88779614,0.0001185,2]
[327200870,1715895046578,-4889.50320945,0.0001185,2]
[327200890,1715895048917,150.0,8.219e-05,2]
[327200891,1715895048938,37.11309801,8.219e-05,2]
[327200892,1715895051573,112.88690199,8.219e-05,2]
[327200893,1715895051596,65.7751222,8.219e-05,2]
[327200894,1715895052727,150.0,8.219e-05,2]
[327200895,1715895052749,150.0,8.219e-05,2]
[327200896,1715895052770,91.00937571,8.219e-05,2]
[327200897,1715895067183,186.1,8.219e-05,2]
[327200914,1715895449213,151.0,0.00020469,120]
[327200930,1715895846500,151.0,0.00020469,120]
[327201000,1715896047338,-337.91121905,9.429e-05,2]
[327201001,1715896048340,-405.80972008,9.429e-05,2]
[327201002,1715896048907,-443.39734804,9.429e-05,2]
[327201003,1715896051985,-150.0,9.429e-05,2]
[327201008,1715896232359,-405.80972008,9.311e-05,2]
[327201009,1715896232369,-1325.23461507,9.312e-05,2]
[327201010,1715896232381,-296.53135641,9.312e-05,2]
[327201012,1715896232470,-496.29675969,9.312e-05,2]
[327201013,1715896232482,-318.78927571,9.312e-05,2]
[327201014,1715896232491,-244.31,9.314e-05,2]
[327201015,1715896232500,-178.13,9.321e-05,2]
[327201016,1715896232509,-95.0883686,9.338e-05,2]
[327201017,1715896232520,-904.9116314,9.338e-05,2]
[327201018,1715896232529,-250.0,9.373e-05,2]
[327201019,1715896232539,-150.0,9.428e-05,2]
[327201020,1715896232548,-21558.44171283,9.429e-05,2]
[327201021,1715896232557,-4427.22,9.537e-05,2]
[327201022,1715896232567,-311.93,9.542e-05,2]
[327201023,1715896232577,-5168.26059391,9.569e-05,2]
[327201024,1715896232591,-1271.46687446,9.569e-05,2]
[327201025,1715896232604,-351.68374011,9.569e-05,2]
[327201026,1715896232618,-618.46,9.569e-05,2]
[327201027,1715896232630,-670.78694448,9.569e-05,2]
[327201028,1715896232643,-1213.95626468,9.569e-05,2]
[327201029,1715896232657,-187.17558236,9.569e-05,2]
[327201030,1715896232671,-136.92442025,9.576e-05,2]
[327201031,1715896232685,-220.76557975,9.576e-05,2]
[327201032,1715896232696,-363.54442025,9.589e-05,2]
[327201033,1715896232710,-338.41557975,9.589e-05,2]
[327201034,1715896232721,-1500.0,9.696e-05,2]
[327201035,1715896232731,-4745.28,9.708e-05,2]
[327201036,1715896232744,-2332.2,9.773e-05,2]
[327201037,1715896232755,-150.92,9.8e-05,2]
[327201038,1715896232764,-244.89766767,9.9e-05,2]
[327201039,1715896232774,-298.78407833,0.0001,2]
[327201040,1715896232783,-6424.87728321,0.0001037,2]
[327201041,1715896232794,-407.84018814,0.0001037,2]
[327201042,1715896233558,-412.48925427,0.0001037,2]
[327201043,1715896233570,-1269.05534468,0.0001037,2]
[327201044,1715896233781,-315.0,0.0001037,2]
[327201045,1715896233796,-330.79,0.0001037,2]
[327201046,1715896233808,-1845.12902834,0.0001037,2]
[327201047,1715896233818,-210.0,0.00010371,2]
[327201048,1715896233829,-23074.67729648,0.0001038,2]
[327201058,1715896238581,-2741.06039633,0.0001038,2]
[327201059,1715896238593,-4006.7037361,0.0001038,2]
[327201060,1715896238605,-5049.73860223,0.0001038,2]
[327201061,1715896238615,-181.63829139,0.000104,2]
[327201062,1715896238624,-827.3928,0.000105,2]
[327201063,1715896238633,-7500.0,0.000105,2]
[327201064,1715896238643,-452.3073,0.000105,2]
[327201065,1715896238652,-218.3225409,0.00010505,2]
[327201066,1715896238665,-781.6774591,0.00010505,2]
[327201067,1715896238675,-359.68978376,0.0001053,2]
[327201068,1715896238684,-1998.73541578,0.00010598,2]
[327201069,1715896238713,-41.67702855,0.00010598,2]
[327201070,1715896238723,-155.24241743,0.00010598,2]
[327201071,1715896238741,-278.45769739,0.00010598,2]
[327201072,1715896238750,-8.62285663,0.00010598,2]
[327201073,1715896238850,-369.27007525,0.00010598,2]
[327201074,1715896238861,-379.73800947,0.00010599,2]
[327201075,1715896238871,-196.3970393,0.00010599,2]
[327201076,1715896238882,-7318.71557829,0.000106,6]
[327201077,1715896238895,-739.9595465,0.000106,6]
[327201078,1715896238906,-608976.20598363,0.000106,6]
[327201079,1715896238915,-3977.87,0.0001063,15]
[327201080,1715896238925,-800.0,0.000107,3]
[327201081,1715896238935,-3925.00221894,0.0001077,2]
[327201082,1715896238945,-1600.0,0.000108,3]
[327201083,1715896238955,-359.68978374,0.00010835,2]
[327201084,1715896238964,-160.87,0.00010891,2]
[327201086,1715896238973,-160.87,0.00010898,2]
[327201088,1715896238983,-2400.0,0.000109,3]
[327201091,1715896238994,-179.86,0.00010901,2]
[327201092,1715896239003,-160.87,0.00010905,2]
[327201094,1715896239013,-160.87,0.00010911,2]
[327201096,1715896239022,-160.87,0.00010918,2]
[327201099,1715896239032,-160.87,0.00010925,2]
[327201100,1715896239041,-160.87,0.00010932,2]
[327201102,1715896239051,-160.87,0.00010939,2]
[327201104,1715896239060,-160.87,0.00010945,2]
[327201107,1715896239069,-500.0,0.00010958,2]
[327201108,1715896239078,-500.0,0.00010958,2]
[327201111,1715896239088,-215.46,0.00010958,2]
[327201112,1715896239097,-345.86205724,0.00010958,2]
[327201115,1715896239107,-500.0,0.00010958,2]
[327201116,1715896239116,-500.0,0.00010958,2]
[327201118,1715896239126,-622.71699966,0.00010958,2]
[327201120,1715896239135,-500.0,0.00010958,2]
[327201122,1715896239145,-500.0,0.00010958,2]
[327201124,1715896239154,-500.0,0.00010958,2]
[327201126,1715896239163,-500.0,0.00010958,2]
[327201128,1715896239172,-480.2436,0.00010958,2]
[327201130,1715896239182,-500.0,0.00010958,2]
[327201132,1715896239191,-500.0,0.00010958,2]
[327201133,1715896239200,-500.0,0.00010958,2]
[327201134,1715896239209,-5212.14,0.00010958,2]
[327201136,1715896239218,-5212.14,0.00010958,2]
[327201138,1715896239228,-5212.14,0.00010958,2]
[327201140,1715896239236,-500.0,0.00010958,2]
[327201142,1715896239246,-500.0,0.00010958,2]
[327201144,1715896239256,-500.0,0.00010958,2]
[327201146,1715896239265,-500.0,0.00010958,2]
[327201148,1715896239275,-500.0,0.00010958,2]
[327201150,1715896239284,-500.0,0.00010958,2]
[327201152,1715896239293,-500.31,0.00010958,2]
[327201154,1715896239302,-419.01,0.00010958,2]
[327201156,1715896239311,-631.06,0.00010958,2]
[327201158,1715896239321,-631.06,0.00010958,2]
[327201160,1715896239331,-631.06,0.00010958,2]
[327201162,1715896239340,-500.0,0.00010958,2]
[327201164,1715896239349,-772.45,0.00010958,2]
[327201166,1715896239358,-772.45,0.00010958,2]
[327201168,1715896239367,-500.0,0.00010958,2]
[327201170,1715896239376,-500.0,0.00010958,2]
[327201172,1715896239385,-500.0,0.00010958,2]
[327201174,1715896239395,-500.0,0.00010958,2]
[327201176,1715896239404,-500.0,0.00010958,2]
[327201178,1715896239413,-4000.0,0.00010959,3]
[327201180,1715896239424,-158.76,0.00010959,2]
[327201182,1715896239433,-793.85,0.00010959,2]
[327201184,1715896239443,-1507.74,0.00010959,2]
[327201186,1715896239453,-150.0,0.00010959,2]
[327201188,1715896239463,-1024.5636,0.00011079,2]
[327201190,1715896239472,-500.0,0.00011099,2]
[327201192,1715896239483,-500.0,0.00011099,2]
[327201194,1715896239493,-221.87,0.00011099,2]
[327201196,1715896239502,-772.45,0.00011099,2]
[327201198,1715896239511,-500.0,0.00011099,2]
[327201200,1715896239520,-4500.0,0.000111,2]
[327201202,1715896239529,-359.68978374,0.0001114,2]
[327201204,1715896239538,-525.6,0.00011178,2]
[327201206,1715896239548,-500.0,0.00011178,2]
[327201209,1715896239558,-500.0,0.00011179,2]
[327201210,1715896239567,-424.59,0.00011179,2]
[327201212,1715896239577,-500.0,0.00011179,2]
[327201214,1715896239586,-5212.14,0.00011179,2]
[327201216,1715896239595,-5212.14,0.00011179,2]
[327201218,1715896239605,-5212.14,0.00011179,2]
[327201220,1715896239614,-5212.14,0.00011179,2]
[327201223,1715896239623,-500.0,0.00011179,2]
[327201225,1715896239633,-564.26,0.00011179,2]
[327201227,1715896239642,-305.2559286,0.00011179,2]
[327201228,1715896239650,-631.06,0.00011179,2]
[327201229,1715896239660,-631.06,0.00011179,2]
[327201230,1715896239674,-631.06,0.00011179,2]
[327201231,1715896239684,-631.06,0.00011179,2]
[327201232,1715896239693,-772.45,0.00011179,2]
[327201233,1715896239703,-772.45,0.00011179,2]
[327201234,1715896239712,-772.45,0.00011179,2]
[327201235,1715896239722,-772.45,0.00011179,2]
[327201236,1715896239731,-500.0,0.00011179,2]
[327201237,1715896239741,-500.0,0.00011179,2]
[327201238,1715896239751,-500.0,0.00011179,2]
[327201239,1715896239761,-500.0,0.00011179,2]
[327201240,1715896239770,-500.0,0.00011179,2]
[327201241,1715896239780,-613.96,0.00011179,2]
[327201242,1715896239790,-8102.0,0.0001118,2]
[327201243,1715896239799,-427831.53607294,0.0001118,2]
[327201244,1715896239811,-470786.531297,0.0001118,2]
[327201246,1715896240585,-7913.66848587,0.0001118,2]
[327201247,1715896240705,-977.67046052,0.0001118,2]
[327201248,1715896240718,-3464.51519998,0.0001118,2]
[327201249,1715896240827,-337.3518643,0.0001118,2]
[327201250,1715896240946,-2295.946,0.0001118,2]
[327201251,1715896241071,-36422.4103058,0.0001118,2]
[327201277,1715896244004,-9008.72764058,0.0001118,2]
[327201294,1715896246417,-360.44824083,0.0001118,2]
[327201295,1715896246430,-502.13752266,0.0001118,2]
[327201296,1715896248326,-15176.65673947,0.0001118,2]
[327201297,1715896248338,-1362.1224446,0.0001118,2]
[327201298,1715896248350,-27500.21357811,0.0001118,2]
[327201299,1715896248359,-192.98403951,0.00011247,2]
[327201300,1715896248370,-200.0,0.00011347,2]
[327201301,1715896248380,-277.0,0.00011408,2]
[327201302,1715896248390,-500.0,0.00011607,2]
[327201303,1715896248399,-1000.0,0.00011672,2]
[327201304,1715896248409,-3000.0,0.0001173,2]
[327201305,1715896248419,-500.0,0.00011737,2]
[327201306,1715896248428,-500.0,0.00011746,2]
[327201307,1715896248438,-161.6624709,0.0001175,2]
[327201308,1715896248448,-4637.34676075,0.0001175,2]
[327201309,1715896248458,-359.68978374,0.0001175,2]
[327201310,1715896248468,-194.26468822,0.0001175,2]
[327201311,1715896248477,-201.28727559,0.0001175,2]
[327201312,1715896248486,-177.86460136,0.0001175,2]
[327201313,1715896248496,-715.6361,0.0001175,2]
[327201314,1715896248506,-1000.0,0.00011754,2]
[327201315,1715896248515,-500.0,0.00011754,2]
[327201316,1715896248527,-500.0,0.00011755,2]
[327201317,1715896248537,-200.0,0.00011755,2]
[327201318,1715896248546,-1000.0,0.00011755,2]
[327201319,1715896248556,-500.0,0.00011755,2]
[327201320,1715896248565,-500.0,0.00011764,2]
[327201321,1715896248574,-500.0,0.00011773,2]
[327201322,1715896248583,-500.0,0.00011781,2]
[327201323,1715896248592,-500.0,0.0001179,2]
[327201324,1715896248601,-500.0,0.00011799,2]
[327201325,1715896248610,-2000.0,0.000118,2]
[327201326,1715896248619,-1249.8992678,0.000118,2]
[327201327,1715896248628,-3200.0,0.000118,4]
[327201328,1715896248637,-150.0,0.0001184,2]
[327201329,1715896248647,-266.16247359,0.00011846,2]
[327201330,1715896248656,-155.0,0.00011848,2]